[Event "January 9 Late 2024"]
[Site "https://www.chess.com"]
[Date "2024.01.09"]
[Round "2"]
[White "Gheorghiu, Calin"]
[Black "Siddharth, Jagadeesh"]
[Result "0-1"]
[Board "92"]
[TimeControl "180+1"]
[WhiteFideId "1200305"]
[BlackFideId "5818320"]
[WhiteElo "2447"]
[BlackElo "2763"]
[WhiteTeam "ROU"]
[BlackTeam "SGP"]
[WhiteClock "0:02:11"]
[BlackClock "0:01:42"]

1. e4 {[%clk 0:02:59]}  e6 {[%clk 0:02:58]} 2. d4 {[%clk 0:02:59]}  d5 {[%clk 0:02:58]} 3. e5 {[%clk 0:03:00]}  c5 {[%clk 0:02:58]} 4. c3 {[%clk 0:03:00]}  Nc6 {[%clk 0:02:58]} 5. Nf3 {[%clk 0:03:01]}  Bd7 {[%clk 0:02:59]} 6. Bd3 {[%clk 0:03:01]}  cxd4 {[%clk 0:02:55]} 7. O-O {[%clk 0:03:00]}  dxc3 {[%clk 0:02:39]} 8. Nxc3 {[%clk 0:03:01]}  Nge7 {[%clk 0:02:39]} 9. Re1 {[%clk 0:02:52]}  Ng6 {[%clk 0:02:37]} 10. a3 {[%clk 0:02:50]}  Be7 {[%clk 0:02:28]} 11. b4 {[%clk 0:02:50]}  Rc8 {[%clk 0:02:22]} 12. Bb2 {[%clk 0:02:49]}  O-O {[%clk 0:02:21]} 13. Rc1 {[%clk 0:02:48]}  f6 {[%clk 0:01:59]} 14. exf6 {[%clk 0:02:41]}  Bxf6 {[%clk 0:02:00]} 15. Qc2 {[%clk 0:02:30]}  Nd4 {[%clk 0:01:54]} 16. Nxd4 {[%clk 0:02:26]}  Bxd4 {[%clk 0:01:55]} 17. Rf1 {[%clk 0:02:24]}  Bxc3 {[%clk 0:01:42]} 18. Bxc3 {[%clk 0:02:20]}  d4 {[%clk 0:01:42]} 19. Bxg6 {[%clk 0:02:19]}  hxg6 {[%clk 0:01:43]} 20. Qxg6 {[%clk 0:02:11]}  Rxc3 {[%clk 0:01:42]} 0-1

[Event "January 9 Late 2024"]
[Site "https://www.chess.com"]
[Date "2024.01.09"]
[Round "2"]
[White "Sliwicki, Damian"]
[Black "Karacsonyi, Gellert"]
[Result "0-1"]
[Board "93"]
[TimeControl "180+1"]
[WhiteFideId "1127128"]
[BlackFideId "764620"]
[WhiteElo "2446"]
[BlackElo "2757"]
[WhiteTeam "POL"]
[BlackTeam "HUN"]
[WhiteClock "0:00:18"]
[BlackClock "0:00:08"]

1. e4 {[%clk 0:03:00]}  c5 {[%clk 0:03:00]} 2. Nc3 {[%clk 0:02:57]}  Nc6 {[%clk 0:03:00]} 3. Bb5 {[%clk 0:02:56]}  Nd4 {[%clk 0:02:58]} 4. Nf3 {[%clk 0:02:56]}  g6 {[%clk 0:02:54]} 5. Bc4 {[%clk 0:02:41]}  Bg7 {[%clk 0:02:49]} 6. Nxd4 {[%clk 0:02:39]}  cxd4 {[%clk 0:02:50]} 7. Qf3 {[%clk 0:02:39]}  Nh6 {[%clk 0:02:49]} 8. Ne2 {[%clk 0:02:31]}  O-O {[%clk 0:02:48]} 9. d3 {[%clk 0:02:27]}  Ng4 {[%clk 0:02:45]} 10. Bxf7+ {[%clk 0:02:02]}  Rxf7 {[%clk 0:02:44]} 11. Qxg4 {[%clk 0:02:03]}  d5 {[%clk 0:02:40]} 12. Qh4 {[%clk 0:02:03]}  dxe4 {[%clk 0:02:36]} 13. Qxe4 {[%clk 0:01:55]}  Bf5 {[%clk 0:02:36]} 14. Qh4 {[%clk 0:01:55]}  Qa5+ {[%clk 0:02:28]} 15. Bd2 {[%clk 0:01:55]}  Qb6 {[%clk 0:02:28]} 16. b3 {[%clk 0:01:42]}  Rc8 {[%clk 0:02:27]} 17. Rc1 {[%clk 0:01:34]}  Qa6 {[%clk 0:02:08]} 18. a4 {[%clk 0:01:22]}  Qe6 {[%clk 0:02:07]} 19. f3 {[%clk 0:01:08]}  Rc5 {[%clk 0:01:39]} 20. g4 {[%clk 0:00:57]}  Re5 {[%clk 0:01:34]} 21. O-O {[%clk 0:00:29]}  Rxe2 {[%clk 0:01:30]} 22. gxf5 {[%clk 0:00:30]}  Rxf5 {[%clk 0:01:22]} 23. Rce1 {[%clk 0:00:26]}  Bf6 {[%clk 0:01:09]} 24. Rxe2 {[%clk 0:00:17]}  Qxe2 {[%clk 0:01:08]} 25. Qf2 {[%clk 0:00:18]}  Qe6 {[%clk 0:01:00]} 26. Kh1 {[%clk 0:00:15]}  Qc6 {[%clk 0:01:00]} 27. Bc1 {[%clk 0:00:11]}  Be5 {[%clk 0:00:56]} 28. Qg2 {[%clk 0:00:08]}  Bd6 {[%clk 0:00:47]} 29. f4 {[%clk 0:00:09]}  e5 {[%clk 0:00:26]} 30. Qxc6 {[%clk 0:00:02]}  bxc6 {[%clk 0:00:27]} 31. Kg2 {[%clk 0:00:03]}  exf4 {[%clk 0:00:28]} 32. Kf3 {[%clk 0:00:03]}  Rc5 {[%clk 0:00:29]} 33. Rf2 {[%clk 0:00:03]}  g5 {[%clk 0:00:29]} 34. Rg2 {[%clk 0:00:03]}  h6 {[%clk 0:00:26]} 35. h4 {[%clk 0:00:04]}  Rf5 {[%clk 0:00:16]} 36. hxg5 {[%clk 0:00:05]}  hxg5 {[%clk 0:00:16]} 37. Kg4 {[%clk 0:00:06]}  Rf7 {[%clk 0:00:15]} 38. Rf2 {[%clk 0:00:04]}  Be7 {[%clk 0:00:14]} 39. Bb2 {[%clk 0:00:03]}  c5 {[%clk 0:00:13]} 40. b4 {[%clk 0:00:02]}  cxb4 {[%clk 0:00:10]} 41. Bxd4 {[%clk 0:00:03]}  a6 {[%clk 0:00:11]} 42. Rg2 {[%clk 0:00:02]}  Rh7 {[%clk 0:00:11]} 43. Kf3 {[%clk 0:00:02]}  Kf7 {[%clk 0:00:12]} 44. Ke4 {[%clk 0:00:01]}  Rh1 {[%clk 0:00:12]} 45. Bf2 {[%clk 0:00:02]}  Rc1 {[%clk 0:00:11]} 46. Bd4 {[%clk 0:00:02]}  Re1+ {[%clk 0:00:11]} 47. Kf5 {[%clk 0:00:02]}  Re6 {[%clk 0:00:07]} 48. Rh2 {[%clk 0:00:02]}  Rd6 {[%clk 0:00:05]} 49. Rh7+ {[%clk 0:00:03]}  Ke8 {[%clk 0:00:06]} 50. Rh8+ {[%clk 0:00:03]}  Kd7 {[%clk 0:00:06]} 51. Rh7 {[%clk 0:00:04]}  Rxd4 {[%clk 0:00:06]} 52. Rg7 {[%clk 0:00:04]}  Rd5+ {[%clk 0:00:07]} 53. Ke4 {[%clk 0:00:04]}  Rc5 {[%clk 0:00:07]} 54. d4 {[%clk 0:00:05]}  Rxc2 {[%clk 0:00:07]} 55. d5 {[%clk 0:00:06]}  Re2+ {[%clk 0:00:08]} 56. Kf5 {[%clk 0:00:06]}  f3 {[%clk 0:00:07]} 57. d6 {[%clk 0:00:06]}  Kxd6 {[%clk 0:00:07]} 58. Rg6+ {[%clk 0:00:07]}  Kd7 {[%clk 0:00:08]} 59. Kg4 {[%clk 0:00:07]}  f2 {[%clk 0:00:08]} 60. a5 {[%clk 0:00:08]}  f1=Q {[%clk 0:00:07]} 61. Rb6 {[%clk 0:00:09]}  Qg1+ {[%clk 0:00:06]} 62. Kh5 {[%clk 0:00:09]}  Qxb6 {[%clk 0:00:06]} 63. axb6 {[%clk 0:00:09]}  Kc6 {[%clk 0:00:07]} 64. b7 {[%clk 0:00:09]}  Kxb7 {[%clk 0:00:07]} 65. Kg6 {[%clk 0:00:10]}  Bc5 {[%clk 0:00:07]} 66. Kf7 {[%clk 0:00:11]}  Ba7 {[%clk 0:00:08]} 67. Kg6 {[%clk 0:00:12]}  Kb6 {[%clk 0:00:08]} 68. Kf5 {[%clk 0:00:13]}  g4 {[%clk 0:00:09]} 69. Kxg4 {[%clk 0:00:14]}  Rf2 {[%clk 0:00:08]} 70. Kg3 {[%clk 0:00:14]}  Kc6 {[%clk 0:00:08]} 71. Kg4 {[%clk 0:00:14]}  Kd5 {[%clk 0:00:08]} 72. Kg3 {[%clk 0:00:15]}  Ke5 {[%clk 0:00:09]} 73. Kg4 {[%clk 0:00:16]}  Rf4+ {[%clk 0:00:09]} 74. Kg3 {[%clk 0:00:17]}  Ke4 {[%clk 0:00:09]} 75. Kg2 {[%clk 0:00:17]}  Bb8 {[%clk 0:00:09]} 76. Kh1 {[%clk 0:00:18]}  Rf2 {[%clk 0:00:06]} 77. Kg1 {[%clk 0:00:19]}  Kf3 {[%clk 0:00:07]} 78. Kh1 {[%clk 0:00:19]}  b3 {[%clk 0:00:07]} 79. Kg1 {[%clk 0:00:18]}  b2 {[%clk 0:00:08]} 0-1

[Event "January 9 Late 2024"]
[Site "https://www.chess.com"]
[Date "2024.01.09"]
[Round "2"]
[White "Goltsev, Dmitry"]
[Black "Blanco Diez, David"]
[Result "1-0"]
[Board "94"]
[TimeControl "180+1"]
[WhiteFideId "24176710"]
[BlackFideId "32032927"]
[WhiteElo "2753"]
[BlackElo "2442"]
[WhiteTeam "RUS"]
[BlackTeam "ESP"]
[WhiteClock "0:02:17"]
[BlackClock "0:00:18"]

1. e4 {[%clk 0:03:00]}  e5 {[%clk 0:02:57]} 2. Nf3 {[%clk 0:03:01]}  Nc6 {[%clk 0:02:57]} 3. Bb5 {[%clk 0:03:01]}  a6 {[%clk 0:02:57]} 4. Ba4 {[%clk 0:03:02]}  Nf6 {[%clk 0:02:57]} 5. O-O {[%clk 0:03:02]}  Be7 {[%clk 0:02:52]} 6. Re1 {[%clk 0:03:03]}  b5 {[%clk 0:02:52]} 7. Bb3 {[%clk 0:03:03]}  O-O {[%clk 0:02:52]} 8. c3 {[%clk 0:03:03]}  d5 {[%clk 0:02:52]} 9. d4 {[%clk 0:03:03]}  dxe4 {[%clk 0:02:27]} 10. Nxe5 {[%clk 0:03:03]}  Nxe5 {[%clk 0:02:22]} 11. dxe5 {[%clk 0:03:04]}  Ng4 {[%clk 0:02:08]} 12. Rxe4 {[%clk 0:02:55]}  Bc5 {[%clk 0:01:57]} 13. Rxg4 {[%clk 0:02:49]}  Bxg4 {[%clk 0:01:56]} 14. Qxg4 {[%clk 0:02:48]}  Qd3 {[%clk 0:01:56]} 15. Bh6 {[%clk 0:02:39]}  Qg6 {[%clk 0:01:38]} 16. Qxg6 {[%clk 0:02:38]}  hxg6 {[%clk 0:01:36]} 17. Bf4 {[%clk 0:02:37]}  Rad8 {[%clk 0:01:26]} 18. Nd2 {[%clk 0:02:36]}  Rfe8 {[%clk 0:01:20]} 19. Nf3 {[%clk 0:02:34]}  Rd7 {[%clk 0:01:12]} 20. Rd1 {[%clk 0:02:31]}  Rxd1+ {[%clk 0:01:11]} 21. Bxd1 {[%clk 0:02:32]}  f6 {[%clk 0:01:10]} 22. e6 {[%clk 0:02:31]}  Bb6 {[%clk 0:00:59]} 23. Bb3 {[%clk 0:02:29]}  Kf8 {[%clk 0:00:59]} 24. Kf1 {[%clk 0:02:28]}  Ke7 {[%clk 0:00:59]} 25. h4 {[%clk 0:02:26]}  c5 {[%clk 0:00:59]} 26. Bd5 {[%clk 0:02:26]}  Rd8 {[%clk 0:00:57]} 27. c4 {[%clk 0:02:25]}  bxc4 {[%clk 0:00:50]} 28. Bxc4 {[%clk 0:02:26]}  Rd1+ {[%clk 0:00:43]} 29. Ke2 {[%clk 0:02:26]}  Rb1 {[%clk 0:00:43]} 30. b3 {[%clk 0:02:18]}  Rb2+ {[%clk 0:00:41]} 31. Nd2 {[%clk 0:02:18]}  Rxa2 {[%clk 0:00:32]} 32. Kf3 {[%clk 0:02:18]}  Ba5 {[%clk 0:00:21]} 33. Ne4 {[%clk 0:02:18]}  Bb4 {[%clk 0:00:18]} 34. Bd6+ {[%clk 0:02:17]}  Ke8 {[%clk 0:00:18]} 35. Bd5 {[%clk 0:02:15]}  Rd2 {[%clk 0:00:17]} 36. Bc6+ {[%clk 0:02:15]}  Kd8 {[%clk 0:00:17]} 37. e7+ {[%clk 0:02:16]}  Kc8 {[%clk 0:00:18]} 38. e8=Q# {[%clk 0:02:17]} 1-0

[Event "January 9 Late 2024"]
[Site "https://www.chess.com"]
[Date "2024.01.09"]
[Round "2"]
[White "Jarocka, Liwia"]
[Black "Kosteniuk, Alexandra"]
[Result "1-0"]
[Board "95"]
[TimeControl "180+1"]
[WhiteFideId "21807558"]
[BlackFideId "4128125"]
[WhiteElo "2406"]
[BlackElo "2751"]
[WhiteTeam "POL"]
[BlackTeam "SUI"]
[WhiteClock "0:00:04"]
[BlackClock "0:00:34"]

1. e4 {[%clk 0:03:00]}  c6 {[%clk 0:03:00]} 2. Nc3 {[%clk 0:02:59]}  d5 {[%clk 0:03:00]} 3. Nf3 {[%clk 0:03:00]}  dxe4 {[%clk 0:03:01]} 4. Nxe4 {[%clk 0:03:00]}  Nf6 {[%clk 0:03:01]} 5. Nxf6+ {[%clk 0:03:01]}  exf6 {[%clk 0:03:02]} 6. d4 {[%clk 0:03:01]}  Bd6 {[%clk 0:03:01]} 7. c3 {[%clk 0:03:01]}  O-O {[%clk 0:03:01]} 8. Be2 {[%clk 0:02:59]}  Be6 {[%clk 0:03:00]} 9. O-O {[%clk 0:02:59]}  Qc7 {[%clk 0:02:53]} 10. Re1 {[%clk 0:02:59]}  Nd7 {[%clk 0:02:51]} 11. g3 {[%clk 0:02:55]}  Rfe8 {[%clk 0:02:52]} 12. Bd2 {[%clk 0:02:52]}  Nf8 {[%clk 0:02:52]} 13. Qc2 {[%clk 0:02:52]}  Rad8 {[%clk 0:02:52]} 14. Bd3 {[%clk 0:02:51]}  Ng6 {[%clk 0:02:52]} 15. c4 {[%clk 0:02:36]}  Qb8 {[%clk 0:02:47]} 16. Bc3 {[%clk 0:02:29]}  b5 {[%clk 0:02:47]} 17. d5 {[%clk 0:02:20]}  cxd5 {[%clk 0:02:32]} 18. cxb5 {[%clk 0:02:20]}  Bd7 {[%clk 0:02:22]} 19. Nd4 {[%clk 0:02:18]}  Rc8 {[%clk 0:02:22]} 20. Bf5 {[%clk 0:02:12]}  Qb7 {[%clk 0:02:12]} 21. Bxd7 {[%clk 0:02:05]}  Qxd7 {[%clk 0:02:13]} 22. Qf5 {[%clk 0:02:05]}  Qb7 {[%clk 0:02:08]} 23. a4 {[%clk 0:01:44]}  Re5 {[%clk 0:02:07]} 24. Qh3 {[%clk 0:01:20]}  Rce8 {[%clk 0:02:06]} 25. Qg2 {[%clk 0:00:58]}  Bc5 {[%clk 0:01:47]} 26. Nc6 {[%clk 0:00:53]}  Rxe1+ {[%clk 0:01:46]} 27. Rxe1 {[%clk 0:00:54]}  Rxe1+ {[%clk 0:01:45]} 28. Bxe1 {[%clk 0:00:55]}  Qd7 {[%clk 0:01:43]} 29. b4 {[%clk 0:00:40]}  Bf8 {[%clk 0:01:42]} 30. Bc3 {[%clk 0:00:39]}  Ne5 {[%clk 0:01:38]} 31. Bxe5 {[%clk 0:00:26]}  fxe5 {[%clk 0:01:39]} 32. Nxe5 {[%clk 0:00:26]}  Qe6 {[%clk 0:01:38]} 33. Nc6 {[%clk 0:00:23]}  Bxb4 {[%clk 0:01:32]} 34. Nxb4 {[%clk 0:00:17]}  Qe1+ {[%clk 0:01:31]} 35. Qf1 {[%clk 0:00:17]}  Qxb4 {[%clk 0:01:32]} 36. Qd3 {[%clk 0:00:17]}  d4 {[%clk 0:01:31]} 37. Kg2 {[%clk 0:00:17]}  g6 {[%clk 0:01:28]} 38. Qe4 {[%clk 0:00:14]}  Qc5 {[%clk 0:01:18]} 39. h4 {[%clk 0:00:10]}  Kg7 {[%clk 0:01:17]} 40. Qc6 {[%clk 0:00:09]}  Qb4 {[%clk 0:01:13]} 41. Qd7 {[%clk 0:00:06]}  Qc5 {[%clk 0:01:07]} 42. a5 {[%clk 0:00:06]}  h5 {[%clk 0:01:05]} 43. a6 {[%clk 0:00:06]}  Qe5 {[%clk 0:00:58]} 44. Qxa7 {[%clk 0:00:04]}  Qe4+ {[%clk 0:00:56]} 45. Kh2 {[%clk 0:00:03]}  Qd5 {[%clk 0:00:49]} 46. Qb7 {[%clk 0:00:02]}  Qf5 {[%clk 0:00:47]} 47. Kg2 {[%clk 0:00:02]}  d3 {[%clk 0:00:46]} 48. Qf3 {[%clk 0:00:02]}  Qxb5 {[%clk 0:00:43]} 49. a7 {[%clk 0:00:02]}  d2 {[%clk 0:00:39]} 50. a8=Q {[%clk 0:00:03]}  Qd7 {[%clk 0:00:38]} 51. Qad5 {[%clk 0:00:02]}  Qe7 {[%clk 0:00:36]} 52. Qxd2 {[%clk 0:00:02]}  f6 {[%clk 0:00:37]} 53. Qdf4 {[%clk 0:00:02]}  Qe6 {[%clk 0:00:37]} 54. Q4e4 {[%clk 0:00:03]}  Qf7 {[%clk 0:00:34]} 55. Qb7 {[%clk 0:00:04]} 1-0

[Event "January 9 Late 2024"]
[Site "https://www.chess.com"]
[Date "2024.01.09"]
[Round "2"]
[White "Hoffmann, Asa"]
[Black "Rastbod, Ali"]
[Result "1-0"]
[Board "99"]
[TimeControl "180+1"]
[WhiteFideId "2001470"]
[BlackFideId "12567477"]
[WhiteElo "2372"]
[BlackElo "2738"]
[WhiteTeam "USA"]
[BlackTeam "IRI"]
[WhiteClock "0:01:34"]
[BlackClock "0:00:00"]

1. d4 {[%clk 0:02:46]}  d5 {[%clk 0:02:59]} 2. Bg5 {[%clk 0:02:43]}  f6 {[%clk 0:02:59]} 3. Bf4 {[%clk 0:02:43]}  c5 {[%clk 0:02:59]} 4. c3 {[%clk 0:02:42]}  Nc6 {[%clk 0:02:59]} 5. Nf3 {[%clk 0:02:42]}  g5 {[%clk 0:02:58]} 6. Be3 {[%clk 0:02:41]}  e5 {[%clk 0:02:55]} 7. dxc5 {[%clk 0:02:38]}  a5 {[%clk 0:02:52]} 8. Na3 {[%clk 0:02:37]}  h6 {[%clk 0:02:50]} 9. Qc2 {[%clk 0:02:35]}  f5 {[%clk 0:02:50]} 10. O-O-O {[%clk 0:02:34]}  Be6 {[%clk 0:02:46]} 11. Nb5 {[%clk 0:02:33]}  Nf6 {[%clk 0:02:32]} 12. h3 {[%clk 0:02:27]}  Ne4 {[%clk 0:02:32]} 13. Nd2 {[%clk 0:02:23]}  Nxc5 {[%clk 0:02:25]} 14. f3 {[%clk 0:02:19]}  d4 {[%clk 0:02:12]} 15. Bf2 {[%clk 0:02:17]}  a4 {[%clk 0:02:00]} 16. g4 {[%clk 0:02:15]}  Qa5 {[%clk 0:01:51]} 17. e4 {[%clk 0:02:10]}  d3 {[%clk 0:01:25]} 18. Bxd3 {[%clk 0:02:07]}  Nxd3+ {[%clk 0:01:26]} 19. Qxd3 {[%clk 0:02:07]}  Rd8 {[%clk 0:01:27]} 20. Qe2 {[%clk 0:02:05]}  a3 {[%clk 0:01:27]} 21. b3 {[%clk 0:02:01]}  fxe4 {[%clk 0:00:22]} 22. Nxe4 {[%clk 0:01:59]}  Be7 {[%clk 0:00:21]} 23. Rxd8+ {[%clk 0:01:58]}  Bxd8 {[%clk 0:00:22]} 24. Nbd6+ {[%clk 0:01:53]}  Ke7 {[%clk 0:00:22]} 25. Nxb7 {[%clk 0:01:53]}  Qc7 {[%clk 0:00:22]} 26. Bc5+ {[%clk 0:01:51]}  Kf7 {[%clk 0:00:22]} 27. Nxd8+ {[%clk 0:01:47]}  Rxd8 {[%clk 0:00:22]} 28. h4 {[%clk 0:01:46]}  Nd4 {[%clk 0:00:15]} 29. cxd4 {[%clk 0:01:44]}  Rxd4 {[%clk 0:00:16]} 30. b4 {[%clk 0:01:41]}  Rxb4 {[%clk 0:00:14]} 31. hxg5 {[%clk 0:01:41]}  Rxe4 {[%clk 0:00:15]} 32. Qxe4 {[%clk 0:01:40]}  Qxc5+ {[%clk 0:00:15]} 33. Kd2 {[%clk 0:01:39]}  Qa5+ {[%clk 0:00:12]} 34. Ke2 {[%clk 0:01:38]}  Qb5+ {[%clk 0:00:11]} 35. Kf2 {[%clk 0:01:38]}  Bd5 {[%clk 0:00:01]} 36. Qf5+ {[%clk 0:01:36]}  Kg8 {[%clk 0:00:02]} 37. Qg6+ {[%clk 0:01:35]}  Kf8 {[%clk 0:00:02]} 38. Qf6+ {[%clk 0:01:35]}  Ke8 {[%clk 0:00:02]} 39. Qxe5+ {[%clk 0:01:35]}  Kd7 {[%clk 0:00:03]} 40. Rd1 {[%clk 0:01:35]}  Qc5+ {[%clk 0:00:03]} 41. Qe3 {[%clk 0:01:34]}  Qc2+ {[%clk 0:00:03]} 42. Rd2 {[%clk 0:01:34]}  Qc4 {[%clk 0:00:00]} 43. Qd4 {[%clk 0:01:34]} 1-0

[Event "January 9 Late 2024"]
[Site "https://www.chess.com"]
[Date "2024.01.09"]
[Round "2"]
[White "Mesa Cruz, Juan Carlos"]
[Black "Ivanisevic, Ivan"]
[Result "0-1"]
[Board "102"]
[TimeControl "180+1"]
[WhiteFideId "6423400"]
[BlackFideId "912417"]
[WhiteElo "2348"]
[BlackElo "2733"]
[WhiteTeam "DOM"]
[BlackTeam "SRB"]
[WhiteClock "0:00:00"]
[BlackClock "0:01:19"]

1. e4 {[%clk 0:03:00]}  e5 {[%clk 0:02:59]} 2. Nf3 {[%clk 0:02:58]}  Nc6 {[%clk 0:02:59]} 3. Bc4 {[%clk 0:02:59]}  Nf6 {[%clk 0:02:59]} 4. d3 {[%clk 0:02:59]}  d5 {[%clk 0:02:58]} 5. exd5 {[%clk 0:02:57]}  Nxd5 {[%clk 0:02:59]} 6. O-O {[%clk 0:02:57]}  Nb6 {[%clk 0:02:54]} 7. Bb5 {[%clk 0:02:54]}  Bd6 {[%clk 0:02:52]} 8. d4 {[%clk 0:02:48]}  exd4 {[%clk 0:02:19]} 9. Qxd4 {[%clk 0:02:35]}  O-O {[%clk 0:02:17]} 10. Bxc6 {[%clk 0:02:35]}  bxc6 {[%clk 0:02:17]} 11. Bg5 {[%clk 0:02:34]}  Qd7 {[%clk 0:02:14]} 12. Bf4 {[%clk 0:02:32]}  c5 {[%clk 0:02:10]} 13. Qd2 {[%clk 0:02:19]}  Bb7 {[%clk 0:02:09]} 14. Bxd6 {[%clk 0:02:16]}  cxd6 {[%clk 0:02:10]} 15. Qf4 {[%clk 0:02:13]}  Nd5 {[%clk 0:02:08]} 16. Qg3 {[%clk 0:02:13]}  f5 {[%clk 0:02:05]} 17. Nbd2 {[%clk 0:02:03]}  Rf6 {[%clk 0:02:03]} 18. Rad1 {[%clk 0:01:48]}  Rg6 {[%clk 0:02:00]} 19. Qh4 {[%clk 0:01:47]}  Rg4 {[%clk 0:01:59]} 20. Qg3 {[%clk 0:00:42]}  Rxg3 {[%clk 0:01:56]} 21. hxg3 {[%clk 0:00:43]}  Re8 {[%clk 0:01:54]} 22. a3 {[%clk 0:00:41]}  h6 {[%clk 0:01:52]} 23. Nc4 {[%clk 0:00:39]}  Ba6 {[%clk 0:01:46]} 24. b3 {[%clk 0:00:36]}  Bxc4 {[%clk 0:01:45]} 25. bxc4 {[%clk 0:00:36]}  Nc3 {[%clk 0:01:45]} 26. Rd3 {[%clk 0:00:35]}  Ne2+ {[%clk 0:01:37]} 27. Kh2 {[%clk 0:00:35]}  Qf7 {[%clk 0:01:38]} 28. Nh4 {[%clk 0:00:09]}  g5 {[%clk 0:01:35]} 29. Rxd6 {[%clk 0:00:08]}  Qh5 {[%clk 0:01:22]} 30. Rg6+ {[%clk 0:00:03]}  Kh7 {[%clk 0:01:21]} 31. Rf6 {[%clk 0:00:00]}  gxh4 {[%clk 0:01:19]} 0-1

[Event "January 9 Late 2024"]
[Site "https://www.chess.com"]
[Date "2024.01.09"]
[Round "2"]
[White "Garayev, Kanan"]
[Black "Antonio, Jorge Carlos"]
[Result "1-0"]
[Board "103"]
[TimeControl "180+1"]
[WhiteFideId "13406671"]
[BlackFideId "113190"]
[WhiteElo "2731"]
[BlackElo "2321"]
[WhiteTeam "AZE"]
[BlackTeam "ARG"]
[WhiteClock "0:00:12"]
[BlackClock "0:00:22"]

1. d4 {[%clk 0:03:00]}  d5 {[%clk 0:02:59]} 2. Nf3 {[%clk 0:03:00]}  c6 {[%clk 0:02:59]} 3. Bf4 {[%clk 0:03:00]}  Nf6 {[%clk 0:03:00]} 4. e3 {[%clk 0:03:00]}  g6 {[%clk 0:02:59]} 5. Nbd2 {[%clk 0:02:59]}  Bg7 {[%clk 0:02:59]} 6. h3 {[%clk 0:03:00]}  O-O {[%clk 0:02:59]} 7. c4 {[%clk 0:03:01]}  Bf5 {[%clk 0:02:58]} 8. Be2 {[%clk 0:02:59]}  Be4 {[%clk 0:02:58]} 9. O-O {[%clk 0:02:57]}  Bxf3 {[%clk 0:02:58]} 10. Nxf3 {[%clk 0:02:57]}  e6 {[%clk 0:02:59]} 11. b4 {[%clk 0:02:56]}  Nbd7 {[%clk 0:02:58]} 12. b5 {[%clk 0:02:53]}  cxb5 {[%clk 0:02:47]} 13. cxb5 {[%clk 0:02:45]}  Rc8 {[%clk 0:02:42]} 14. Rc1 {[%clk 0:00:19]}  Qa5 {[%clk 0:02:38]} 15. Qb3 {[%clk 0:00:19]}  Nb6 {[%clk 0:02:36]} 16. Bd6 {[%clk 0:00:19]}  Rfd8 {[%clk 0:02:11]} 17. Bc5 {[%clk 0:00:20]}  Ne4 {[%clk 0:01:55]} 18. Bxb6 {[%clk 0:00:19]}  Qxb6 {[%clk 0:01:54]} 19. Qb2 {[%clk 0:00:19]}  Bf8 {[%clk 0:01:45]} 20. Bd3 {[%clk 0:00:20]}  Nd6 {[%clk 0:01:40]} 21. a4 {[%clk 0:00:17]}  Nc4 {[%clk 0:01:39]} 22. Bxc4 {[%clk 0:00:17]}  Rxc4 {[%clk 0:01:38]} 23. Rxc4 {[%clk 0:00:16]}  dxc4 {[%clk 0:01:37]} 24. Rc1 {[%clk 0:00:17]}  Rc8 {[%clk 0:01:37]} 25. Ne5 {[%clk 0:00:18]}  c3 {[%clk 0:01:17]} 26. Rxc3 {[%clk 0:00:18]}  Rxc3 {[%clk 0:01:13]} 27. Qxc3 {[%clk 0:00:19]}  Qd8 {[%clk 0:01:06]} 28. g3 {[%clk 0:00:18]}  Bd6 {[%clk 0:01:05]} 29. Nd3 {[%clk 0:00:18]}  Qg5 {[%clk 0:00:57]} 30. h4 {[%clk 0:00:17]}  Qg4 {[%clk 0:00:52]} 31. Qc8+ {[%clk 0:00:14]}  Kg7 {[%clk 0:00:52]} 32. Qc3 {[%clk 0:00:15]}  Bxg3 {[%clk 0:00:50]} 33. fxg3 {[%clk 0:00:14]}  Qxg3+ {[%clk 0:00:51]} 34. Kf1 {[%clk 0:00:15]}  Qxe3 {[%clk 0:00:50]} 35. d5+ {[%clk 0:00:15]}  Kh6 {[%clk 0:00:46]} 36. Qc1 {[%clk 0:00:13]}  Qxc1+ {[%clk 0:00:40]} 37. Nxc1 {[%clk 0:00:14]}  exd5 {[%clk 0:00:40]} 38. Kg2 {[%clk 0:00:15]}  Kh5 {[%clk 0:00:41]} 39. Kg3 {[%clk 0:00:15]}  f6 {[%clk 0:00:41]} 40. Ne2 {[%clk 0:00:15]}  g5 {[%clk 0:00:41]} 41. hxg5 {[%clk 0:00:15]}  Kxg5 {[%clk 0:00:36]} 42. Nd4 {[%clk 0:00:16]}  f5 {[%clk 0:00:33]} 43. a5 {[%clk 0:00:17]}  f4+ {[%clk 0:00:33]} 44. Kf3 {[%clk 0:00:17]}  h5 {[%clk 0:00:32]} 45. a6 {[%clk 0:00:16]}  bxa6 {[%clk 0:00:31]} 46. bxa6 {[%clk 0:00:17]}  h4 {[%clk 0:00:31]} 47. Nc6 {[%clk 0:00:13]}  h3 {[%clk 0:00:28]} 48. Nxa7 {[%clk 0:00:12]}  h2 {[%clk 0:00:25]} 49. Kg2 {[%clk 0:00:13]}  d4 {[%clk 0:00:26]} 50. Nc6 {[%clk 0:00:11]}  d3 {[%clk 0:00:27]} 51. Ne5 {[%clk 0:00:11]}  Kf5 {[%clk 0:00:24]} 52. Nxd3 {[%clk 0:00:10]}  f3+ {[%clk 0:00:22]} 53. Kxh2 {[%clk 0:00:10]}  Ke4 {[%clk 0:00:21]} 54. Nf2+ {[%clk 0:00:11]}  Ke3 {[%clk 0:00:21]} 55. Kg3 {[%clk 0:00:11]}  Ke2 {[%clk 0:00:20]} 56. a7 {[%clk 0:00:12]}  Kf1 {[%clk 0:00:21]} 57. a8=Q {[%clk 0:00:12]}  Kg1 {[%clk 0:00:22]} 58. Qa1# {[%clk 0:00:12]} 1-0

[Event "January 9 Late 2024"]
[Site "https://www.chess.com"]
[Date "2024.01.10"]
[Round "2"]
[White "Graham, Nathaniel"]
[Black "Weetik, Vjacheslav"]
[Result "0-1"]
[Board "104"]
[TimeControl "180+1"]
[WhiteFideId "2007983"]
[BlackFideId "4153472"]
[WhiteElo "2316"]
[BlackElo "2731"]
[WhiteTeam "USA"]
[BlackTeam "RUS"]
[WhiteClock "0:00:00"]
[BlackClock "0:01:50"]

1. e4 {[%clk 0:03:00]}  c6 {[%clk 0:02:58]} 2. d4 {[%clk 0:03:00]}  d5 {[%clk 0:02:57]} 3. Nd2 {[%clk 0:03:00]}  dxe4 {[%clk 0:02:57]} 4. Nxe4 {[%clk 0:03:01]}  Bf5 {[%clk 0:02:57]} 5. Ng3 {[%clk 0:03:01]}  Bg6 {[%clk 0:02:58]} 6. h4 {[%clk 0:03:02]}  h6 {[%clk 0:02:58]} 7. Nf3 {[%clk 0:03:02]}  e6 {[%clk 0:02:58]} 8. h5 {[%clk 0:03:03]}  Bh7 {[%clk 0:02:58]} 9. Bd3 {[%clk 0:03:03]}  Bxd3 {[%clk 0:02:58]} 10. Qxd3 {[%clk 0:03:04]}  Nf6 {[%clk 0:02:58]} 11. Bd2 {[%clk 0:03:03]}  c5 {[%clk 0:02:58]} 12. O-O-O {[%clk 0:02:48]}  Nc6 {[%clk 0:02:58]} 13. Be3 {[%clk 0:02:19]}  Qa5 {[%clk 0:02:49]} 14. Qb3 {[%clk 0:01:54]}  O-O-O {[%clk 0:02:35]} 15. Kb1 {[%clk 0:01:03]}  Be7 {[%clk 0:02:28]} 16. Qc4 {[%clk 0:00:47]}  b5 {[%clk 0:02:13]} 17. Qe2 {[%clk 0:00:44]}  c4 {[%clk 0:02:11]} 18. Ne5 {[%clk 0:00:21]}  Nxe5 {[%clk 0:02:07]} 19. dxe5 {[%clk 0:00:21]}  Nd5 {[%clk 0:02:06]} 20. c3 {[%clk 0:00:14]}  Rd7 {[%clk 0:01:58]} 21. Bd4 {[%clk 0:00:13]}  Rhd8 {[%clk 0:01:58]} 22. Ne4 {[%clk 0:00:12]}  Rc7 {[%clk 0:01:58]} 23. g3 {[%clk 0:00:11]}  b4 {[%clk 0:01:57]} 24. Rc1 {[%clk 0:00:08]}  b3 {[%clk 0:01:56]} 25. a3 {[%clk 0:00:00]}  Rc6 {[%clk 0:01:50]} 0-1